[Event "Titled Tuesday Blitz February 28 Early 2023"]
[White "Sarana, Alexey"]
[Black "Averjanov, Alexey"]
[WhiteFideId "24133795"]
[BlackFideId "14109867"]
[WhiteElo "2717"]
[BlackElo "2660"]
[Result "1-0"]
[Round "07"]
[TimeControl "180+2"]
[Date "2023.02.28"]
[WhiteClock "0:00:02"]
[BlackClock "0:00:02"]

1. c4 {[%clk 0:03:00]}  c5 {[%clk 0:02:59]} 2. Nf3 {[%clk 0:03:00]}  Nf6 {[%clk 0:02:52]} 3. Nc3 {[%clk 0:03:00]}  Nc6 {[%clk 0:02:37]} 4. g3 {[%clk 0:03:00]}  g6 {[%clk 0:02:37]} 5. Bg2 {[%clk 0:03:01]}  Bg7 {[%clk 0:02:38]} 6. O-O {[%clk 0:03:01]}  O-O {[%clk 0:02:38]} 7. d4 {[%clk 0:03:02]}  cxd4 {[%clk 0:02:37]} 8. Nxd4 {[%clk 0:03:02]}  d6 {[%clk 0:02:37]} 9. e3 {[%clk 0:03:01]}  Bd7 {[%clk 0:02:36]} 10. b3 {[%clk 0:03:00]}  Qa5 {[%clk 0:02:35]} 11. Bb2 {[%clk 0:03:00]}  Rfc8 {[%clk 0:02:35]} 12. Rc1 {[%clk 0:02:59]}  a6 {[%clk 0:02:35]} 13. Re1 {[%clk 0:02:53]}  Rab8 {[%clk 0:02:33]} 14. a3 {[%clk 0:02:41]}  Qh5 {[%clk 0:02:24]} 15. Qxh5 {[%clk 0:02:37]}  Nxh5 {[%clk 0:02:25]} 16. Nd5 {[%clk 0:02:37]}  Kf8 {[%clk 0:02:20]} 17. Nb6 {[%clk 0:02:22]}  Rc7 {[%clk 0:02:18]} 18. Nxd7+ {[%clk 0:01:59]}  Rxd7 {[%clk 0:02:19]} 19. Nxc6 {[%clk 0:01:58]}  bxc6 {[%clk 0:02:20]} 20. Bxg7+ {[%clk 0:01:59]}  Nxg7 {[%clk 0:02:18]} 21. Bxc6 {[%clk 0:01:59]}  Rc7 {[%clk 0:02:17]} 22. Ba4 {[%clk 0:02:00]}  Ne6 {[%clk 0:02:02]} 23. b4 {[%clk 0:01:59]}  a5 {[%clk 0:02:00]} 24. Bb5 {[%clk 0:01:48]}  axb4 {[%clk 0:01:59]} 25. axb4 {[%clk 0:01:49]}  Rcb7 {[%clk 0:01:55]} 26. Ra1 {[%clk 0:00:43]}  Nc7 {[%clk 0:01:54]} 27. Ra5 {[%clk 0:00:43]}  Nxb5 {[%clk 0:01:53]} 28. cxb5 {[%clk 0:00:43]}  Rxb5 {[%clk 0:01:54]} 29. Rxb5 {[%clk 0:00:44]}  Rxb5 {[%clk 0:01:54]} 30. Rb1 {[%clk 0:00:44]}  Ke8 {[%clk 0:01:48]} 31. Kf1 {[%clk 0:00:45]}  Kd7 {[%clk 0:01:48]} 32. Ke2 {[%clk 0:00:46]}  Kc6 {[%clk 0:01:47]} 33. Kd3 {[%clk 0:00:46]}  Rb7 {[%clk 0:01:39]} 34. Kc3 {[%clk 0:00:44]}  Kb5 {[%clk 0:01:37]} 35. Ra1 {[%clk 0:00:44]}  Rc7+ {[%clk 0:01:30]} 36. Kb3 {[%clk 0:00:44]}  Kb6 {[%clk 0:01:25]} 37. g4 {[%clk 0:00:41]}  Kb7 {[%clk 0:01:15]} 38. h4 {[%clk 0:00:40]}  d5 {[%clk 0:01:11]} 39. Rd1 {[%clk 0:00:25]}  e6 {[%clk 0:01:11]} 40. f3 {[%clk 0:00:24]}  Kb6 {[%clk 0:01:07]} 41. e4 {[%clk 0:00:21]}  dxe4 {[%clk 0:01:07]} 42. fxe4 {[%clk 0:00:22]}  f5 {[%clk 0:01:05]} 43. gxf5 {[%clk 0:00:04]}  gxf5 {[%clk 0:01:03]} 44. exf5 {[%clk 0:00:03]}  exf5 {[%clk 0:01:04]} 45. Rd4 {[%clk 0:00:03]}  Rf7 {[%clk 0:01:02]} 46. Rf4 {[%clk 0:00:03]}  Kb5 {[%clk 0:01:02]} 47. Kc3 {[%clk 0:00:04]}  Rf8 {[%clk 0:00:59]} 48. Kd3 {[%clk 0:00:04]}  Rf7 {[%clk 0:00:57]} 49. Ke3 {[%clk 0:00:04]}  Rf8 {[%clk 0:00:57]} 50. Kf3 {[%clk 0:00:03]}  Rf7 {[%clk 0:00:57]} 51. Rd4 {[%clk 0:00:03]}  f4 {[%clk 0:00:53]} 52. Rxf4 {[%clk 0:00:02]}  Rg7 {[%clk 0:00:47]} 53. Re4 {[%clk 0:00:02]}  Kc6 {[%clk 0:00:42]} 54. Kf4 {[%clk 0:00:02]}  Kd5 {[%clk 0:00:37]} 55. Re5+ {[%clk 0:00:03]}  Kc4 {[%clk 0:00:36]} 56. b5 {[%clk 0:00:03]}  Rb7 {[%clk 0:00:34]} 57. Kg5 {[%clk 0:00:03]}  Kd4 {[%clk 0:00:32]} 58. Rf5 {[%clk 0:00:03]}  Rb6 {[%clk 0:00:31]} 59. Kg4 {[%clk 0:00:02]}  Rg6+ {[%clk 0:00:28]} 60. Rg5 {[%clk 0:00:03]}  Rb6 {[%clk 0:00:26]} 61. Kh5 {[%clk 0:00:03]}  Ke4 {[%clk 0:00:23]} 62. Kg4 {[%clk 0:00:03]}  Kd4 {[%clk 0:00:22]} 63. Kf4 {[%clk 0:00:03]}  Rf6+ {[%clk 0:00:20]} 64. Rf5 {[%clk 0:00:03]}  Rb6 {[%clk 0:00:19]} 65. Kg5 {[%clk 0:00:03]}  Rg6+ {[%clk 0:00:19]} 66. Kh5 {[%clk 0:00:02]}  Rb6 {[%clk 0:00:19]} 67. Kg4 {[%clk 0:00:02]}  Ke4 {[%clk 0:00:19]} 68. h5 {[%clk 0:00:02]}  h6 {[%clk 0:00:16]} 69. Rc5 {[%clk 0:00:02]}  Kd4 {[%clk 0:00:17]} 70. Rc6 {[%clk 0:00:02]}  Rxb5 {[%clk 0:00:17]} 71. Rxh6 {[%clk 0:00:02]}  Ke5 {[%clk 0:00:16]} 72. Ra6 {[%clk 0:00:02]}  Rb1 {[%clk 0:00:14]} 73. Kg5 {[%clk 0:00:02]}  Rg1+ {[%clk 0:00:14]} 74. Kh6 {[%clk 0:00:03]}  Rg2 {[%clk 0:00:13]} 75. Kh7 {[%clk 0:00:03]}  Rg3 {[%clk 0:00:13]} 76. h6 {[%clk 0:00:02]}  Rg2 {[%clk 0:00:13]} 77. Kh8 {[%clk 0:00:02]}  Rg1 {[%clk 0:00:12]} 78. Kh7 {[%clk 0:00:03]}  Rg2 {[%clk 0:00:12]} 79. Rg6 {[%clk 0:00:03]}  Ra2 {[%clk 0:00:09]} 80. Kg8 {[%clk 0:00:01]}  Ra8+ {[%clk 0:00:08]} 81. Kg7 {[%clk 0:00:02]}  Ra7+ {[%clk 0:00:08]} 82. Kh8 {[%clk 0:00:02]}  Kf5 {[%clk 0:00:07]} 83. Rg1 {[%clk 0:00:01]}  Ra8+ {[%clk 0:00:07]} 84. Kh7 {[%clk 0:00:01]}  Ra7+ {[%clk 0:00:07]} 85. Rg7 {[%clk 0:00:02]}  Ra8 {[%clk 0:00:08]} 86. Rf7+ {[%clk 0:00:02]}  Ke6 {[%clk 0:00:07]} 87. Kg6 {[%clk 0:00:02]}  Ra1 {[%clk 0:00:07]} 88. Rf4 {[%clk 0:00:01]}  Rg1+ {[%clk 0:00:05]} 89. Kh5 {[%clk 0:00:01]}  Ke5 {[%clk 0:00:04]} 90. Rh4 {[%clk 0:00:01]}  Kf6 {[%clk 0:00:03]} 91. Rf4+ {[%clk 0:00:01]}  Ke7 {[%clk 0:00:03]} 92. h7 {[%clk 0:00:01]}  Rh1+ {[%clk 0:00:02]} 93. Rh4 {[%clk 0:00:02]} 1-0


[Site "https://www.chess.com"]

[Event "Titled Tuesday Blitz February 28 Early 2023"]
[White "Weetik, Vjacheslav"]
[Black "Adhiban, B."]
[WhiteFideId "4153472"]
[BlackFideId "5018471"]
[WhiteElo "2469"]
[BlackElo "2587"]
[Result "0-1"]
[Round "07"]
[TimeControl "180+2"]
[Date "2023.02.28"]
[WhiteClock "0:00:15"]
[BlackClock "0:02:06"]

1. d4 {[%clk 0:02:58]}  Nf6 {[%clk 0:02:59]} 2. c4 {[%clk 0:02:58]}  c5 {[%clk 0:02:59]} 3. e3 {[%clk 0:02:54]}  g6 {[%clk 0:02:58]} 4. Nf3 {[%clk 0:02:51]}  Bg7 {[%clk 0:02:59]} 5. d5 {[%clk 0:02:41]}  e6 {[%clk 0:02:56]} 6. Be2 {[%clk 0:02:33]}  exd5 {[%clk 0:02:55]} 7. cxd5 {[%clk 0:02:33]}  O-O {[%clk 0:02:55]} 8. O-O {[%clk 0:02:30]}  Ne4 {[%clk 0:02:52]} 9. Qc2 {[%clk 0:02:21]}  f5 {[%clk 0:02:50]} 10. d6 {[%clk 0:02:02]}  b6 {[%clk 0:02:46]} 11. Rd1 {[%clk 0:01:52]}  Bb7 {[%clk 0:02:45]} 12. Nc3 {[%clk 0:01:52]}  Kh8 {[%clk 0:02:37]} 13. Nb5 {[%clk 0:01:47]}  Nc6 {[%clk 0:02:37]} 14. Rb1 {[%clk 0:00:59]}  Nb4 {[%clk 0:02:29]} 15. Qb3 {[%clk 0:00:52]}  g5 {[%clk 0:02:26]} 16. a3 {[%clk 0:00:52]}  Nc6 {[%clk 0:02:23]} 17. Qc2 {[%clk 0:00:45]}  g4 {[%clk 0:02:22]} 18. Ne1 {[%clk 0:00:45]}  Ne5 {[%clk 0:02:17]} 19. b3 {[%clk 0:00:40]}  Qh4 {[%clk 0:02:09]} 20. Bf1 {[%clk 0:00:20]}  Rf6 {[%clk 0:02:05]} 21. Bb2 {[%clk 0:00:19]}  Rh6 {[%clk 0:02:05]} 22. h3 {[%clk 0:00:15]}  gxh3 {[%clk 0:02:06]} 0-1


[Site "https://www.chess.com"]

[Event "Titled Tuesday Blitz February 28 Early 2023"]
[White "Dominguez Perez, Leinier"]
[Black "Kowalczyk, Pawel"]
[WhiteFideId "3503240"]
[BlackFideId "1130641"]
[WhiteElo "2647"]
[BlackElo "2324"]
[Result "0-1"]
[Round "07"]
[TimeControl "180+2"]
[Date "2023.02.28"]
[WhiteClock "0:00:01"]
[BlackClock "0:00:02"]

1. e4 {[%clk 0:03:00]}  c5 {[%clk 0:02:59]} 2. Nf3 {[%clk 0:03:00]}  e6 {[%clk 0:02:59]} 3. d4 {[%clk 0:03:01]}  cxd4 {[%clk 0:03:00]} 4. Nxd4 {[%clk 0:03:01]}  Qb6 {[%clk 0:03:00]} 5. Be3 {[%clk 0:02:57]}  Bc5 {[%clk 0:03:00]} 6. Na3 {[%clk 0:02:54]}  d5 {[%clk 0:02:58]} 7. exd5 {[%clk 0:02:31]}  exd5 {[%clk 0:02:59]} 8. c3 {[%clk 0:02:27]}  Ne7 {[%clk 0:02:53]} 9. b4 {[%clk 0:02:25]}  Bxd4 {[%clk 0:02:33]} 10. Qxd4 {[%clk 0:02:18]}  Qxd4 {[%clk 0:02:30]} 11. Bxd4 {[%clk 0:02:18]}  O-O {[%clk 0:02:26]} 12. Nb5 {[%clk 0:02:17]}  Nbc6 {[%clk 0:02:24]} 13. Bc5 {[%clk 0:02:08]}  Bf5 {[%clk 0:02:11]} 14. O-O-O {[%clk 0:02:04]}  b6 {[%clk 0:02:08]} 15. Bxe7 {[%clk 0:02:03]}  Nxe7 {[%clk 0:02:07]} 16. Be2 {[%clk 0:02:00]}  a5 {[%clk 0:02:03]} 17. Kb2 {[%clk 0:02:00]}  Be6 {[%clk 0:01:49]} 18. Nd4 {[%clk 0:01:57]}  Rac8 {[%clk 0:01:43]} 19. Rhe1 {[%clk 0:01:56]}  Rfd8 {[%clk 0:01:42]} 20. Ba6 {[%clk 0:01:53]}  Ra8 {[%clk 0:01:34]} 21. Bd3 {[%clk 0:01:50]}  Rd6 {[%clk 0:01:25]} 22. Re3 {[%clk 0:01:50]}  Nc6 {[%clk 0:01:11]} 23. Nxc6 {[%clk 0:01:50]}  Rxc6 {[%clk 0:01:11]} 24. Bb5 {[%clk 0:01:47]}  Rc7 {[%clk 0:01:08]} 25. a3 {[%clk 0:01:36]}  g6 {[%clk 0:01:08]} 26. Rd4 {[%clk 0:01:31]}  Kg7 {[%clk 0:01:07]} 27. Bd3 {[%clk 0:01:28]}  axb4 {[%clk 0:01:04]} 28. cxb4 {[%clk 0:01:27]}  h5 {[%clk 0:00:58]} 29. h4 {[%clk 0:01:26]}  Kf6 {[%clk 0:00:57]} 30. Bc2 {[%clk 0:01:26]}  Rc4 {[%clk 0:00:56]} 31. Red3 {[%clk 0:01:17]}  Rxd4 {[%clk 0:00:52]} 32. Rxd4 {[%clk 0:01:16]}  Ke5 {[%clk 0:00:53]} 33. Rd2 {[%clk 0:01:12]}  Rc8 {[%clk 0:00:45]} 34. Bb3 {[%clk 0:01:09]}  d4 {[%clk 0:00:42]} 35. Re2+ {[%clk 0:01:09]}  Kd6 {[%clk 0:00:41]} 36. Rc2 {[%clk 0:00:58]}  Ra8 {[%clk 0:00:31]} 37. b5 {[%clk 0:00:54]}  Bd5 {[%clk 0:00:15]} 38. a4 {[%clk 0:00:41]}  Re8 {[%clk 0:00:14]} 39. Bxd5 {[%clk 0:00:31]}  Kxd5 {[%clk 0:00:15]} 40. Rc6 {[%clk 0:00:31]}  Re2+ {[%clk 0:00:14]} 41. Kb3 {[%clk 0:00:31]}  Re6 {[%clk 0:00:08]} 42. Rc7 {[%clk 0:00:27]}  Rf6 {[%clk 0:00:06]} 43. f3 {[%clk 0:00:27]}  Ke5 {[%clk 0:00:06]} 44. Rd7 {[%clk 0:00:26]}  Rd6 {[%clk 0:00:03]} 45. Rxd6 {[%clk 0:00:22]}  Kxd6 {[%clk 0:00:04]} 46. Kc4 {[%clk 0:00:22]}  Ke5 {[%clk 0:00:05]} 47. a5 {[%clk 0:00:03]}  bxa5 {[%clk 0:00:04]} 48. b6 {[%clk 0:00:04]}  Kd6 {[%clk 0:00:04]} 49. Kb5 {[%clk 0:00:04]}  d3 {[%clk 0:00:02]} 50. Ka6 {[%clk 0:00:05]}  d2 {[%clk 0:00:02]} 51. b7 {[%clk 0:00:06]}  d1=Q {[%clk 0:00:02]} 52. b8=Q+ {[%clk 0:00:07]}  Ke6 {[%clk 0:00:02]} 53. Qe8+ {[%clk 0:00:02]}  Kf6 {[%clk 0:00:02]} 54. Qh8+ {[%clk 0:00:02]}  Kf5 {[%clk 0:00:03]} 55. Qc8+ {[%clk 0:00:01]}  Kf4 {[%clk 0:00:02]} 56. Qc7+ {[%clk 0:00:01]}  Ke3 {[%clk 0:00:02]} 0-1


[Site "https://www.chess.com"]

[Event "Titled Tuesday Blitz February 28 Early 2023"]
[White "Kim, Sergey"]
[Black "Demchenko, Anton"]
[WhiteFideId "13700570"]
[BlackFideId "4160258"]
[WhiteElo "2631"]
[BlackElo "2545"]
[Result "0-1"]
[Round "07"]
[TimeControl "180+2"]
[Date "2023.02.28"]
[WhiteClock "0:00:01"]
[BlackClock "0:00:04"]

1. d4 {[%clk 0:03:00]}  d5 {[%clk 0:03:00]} 2. c4 {[%clk 0:03:01]}  c6 {[%clk 0:03:00]} 3. Nf3 {[%clk 0:03:00]}  Nf6 {[%clk 0:03:00]} 4. Qc2 {[%clk 0:03:00]}  g6 {[%clk 0:02:59]} 5. e3 {[%clk 0:02:59]}  Bg7 {[%clk 0:02:58]} 6. Nbd2 {[%clk 0:02:57]}  O-O {[%clk 0:02:55]} 7. Bd3 {[%clk 0:02:54]}  Na6 {[%clk 0:02:56]} 8. a3 {[%clk 0:02:54]}  c5 {[%clk 0:02:56]} 9. O-O {[%clk 0:02:50]}  cxd4 {[%clk 0:02:52]} 10. exd4 {[%clk 0:02:49]}  dxc4 {[%clk 0:02:52]} 11. Nxc4 {[%clk 0:02:49]}  Bg4 {[%clk 0:02:50]} 12. Nce5 {[%clk 0:02:46]}  Be6 {[%clk 0:02:46]} 13. Qe2 {[%clk 0:02:33]}  Nc7 {[%clk 0:02:45]} 14. b4 {[%clk 0:02:21]}  Rc8 {[%clk 0:02:41]} 15. Bb2 {[%clk 0:02:21]}  Ncd5 {[%clk 0:02:40]} 16. Qd2 {[%clk 0:02:20]}  Ng4 {[%clk 0:02:21]} 17. Rac1 {[%clk 0:02:16]}  Rxc1 {[%clk 0:02:18]} 18. Rxc1 {[%clk 0:02:15]}  Bh6 {[%clk 0:02:13]} 19. Ng5 {[%clk 0:02:13]}  Nxe5 {[%clk 0:01:53]} 20. dxe5 {[%clk 0:02:10]}  Nxb4 {[%clk 0:01:42]} 21. axb4 {[%clk 0:02:05]}  Bxg5 {[%clk 0:01:43]} 22. Qxg5 {[%clk 0:02:04]}  Qxd3 {[%clk 0:01:43]} 23. h4 {[%clk 0:01:53]}  Re8 {[%clk 0:01:19]} 24. h5 {[%clk 0:01:48]}  Qe2 {[%clk 0:01:05]} 25. Bd4 {[%clk 0:01:41]}  b6 {[%clk 0:00:55]} 26. h6 {[%clk 0:01:34]}  Kf8 {[%clk 0:00:56]} 27. Be3 {[%clk 0:01:29]}  Rc8 {[%clk 0:00:48]} 28. Ra1 {[%clk 0:00:54]}  Rc7 {[%clk 0:00:43]} 29. Qf4 {[%clk 0:00:48]}  Qb5 {[%clk 0:00:33]} 30. Qe4 {[%clk 0:00:45]}  Qe8 {[%clk 0:00:32]} 31. Qd4 {[%clk 0:00:40]}  Qc8 {[%clk 0:00:30]} 32. Kh2 {[%clk 0:00:38]}  Ke8 {[%clk 0:00:30]} 33. Qe4 {[%clk 0:00:36]}  Qb7 {[%clk 0:00:29]} 34. Qf4 {[%clk 0:00:32]}  Qd5 {[%clk 0:00:28]} 35. Ra3 {[%clk 0:00:27]}  Rd7 {[%clk 0:00:27]} 36. Ra1 {[%clk 0:00:26]}  Kd8 {[%clk 0:00:27]} 37. Re1 {[%clk 0:00:20]}  Kc8 {[%clk 0:00:27]} 38. Re2 {[%clk 0:00:20]}  Kb7 {[%clk 0:00:27]} 39. Rd2 {[%clk 0:00:20]}  Qc6 {[%clk 0:00:27]} 40. Rxd7+ {[%clk 0:00:19]}  Qxd7 {[%clk 0:00:28]} 41. Qe4+ {[%clk 0:00:19]}  Qc6 {[%clk 0:00:28]} 42. Qf4 {[%clk 0:00:20]}  Qd5 {[%clk 0:00:27]} 43. Qg5 {[%clk 0:00:17]}  Qd7 {[%clk 0:00:25]} 44. Qf4 {[%clk 0:00:17]}  Bd5 {[%clk 0:00:24]} 45. f3 {[%clk 0:00:16]}  Be6 {[%clk 0:00:21]} 46. Bf2 {[%clk 0:00:16]}  Qb5 {[%clk 0:00:17]} 47. Qe4+ {[%clk 0:00:15]}  Ka6 {[%clk 0:00:17]} 48. Bh4 {[%clk 0:00:15]}  Bd5 {[%clk 0:00:12]} 49. Qf4 {[%clk 0:00:15]}  Qd7 {[%clk 0:00:11]} 50. Qd4 {[%clk 0:00:14]}  Qe6 {[%clk 0:00:11]} 51. Bxe7 {[%clk 0:00:13]}  Bxf3 {[%clk 0:00:05]} 52. Bg5 {[%clk 0:00:09]}  Bd5 {[%clk 0:00:05]} 53. Qf4 {[%clk 0:00:09]}  Kb7 {[%clk 0:00:05]} 54. Bf6 {[%clk 0:00:08]}  Bc6 {[%clk 0:00:05]} 55. Qd4 {[%clk 0:00:08]}  Qd5 {[%clk 0:00:05]} 56. Qf2 {[%clk 0:00:07]}  a5 {[%clk 0:00:05]} 57. bxa5 {[%clk 0:00:07]}  bxa5 {[%clk 0:00:06]} 58. Be7 {[%clk 0:00:07]}  a4 {[%clk 0:00:06]} 59. Bd6 {[%clk 0:00:07]}  Kc8 {[%clk 0:00:06]} 60. Qb2 {[%clk 0:00:06]}  Kd7 {[%clk 0:00:06]} 61. Qf2 {[%clk 0:00:04]}  Ke8 {[%clk 0:00:06]} 62. Qb2 {[%clk 0:00:03]}  Bb7 {[%clk 0:00:06]} 63. Qc2 {[%clk 0:00:03]}  f5 {[%clk 0:00:05]} 64. Qb2 {[%clk 0:00:01]}  Kf7 {[%clk 0:00:05]} 65. e6+ {[%clk 0:00:01]}  Kxe6 {[%clk 0:00:04]} 66. Bf4 {[%clk 0:00:01]}  Qe4 {[%clk 0:00:04]} 0-1


[Site "https://www.chess.com"]

[Event "Titled Tuesday Blitz February 28 Early 2023"]
[White "Tan, Jun Ying"]
[Black "Kravtsiv, Martyn"]
[WhiteFideId "5710413"]
[BlackFideId "14113147"]
[WhiteElo "2089"]
[BlackElo "2695"]
[Result "0-1"]
[Round "07"]
[TimeControl "180+2"]
[Date "2023.02.28"]
[WhiteClock "0:00:03"]
[BlackClock "0:00:20"]

1. d4 {[%clk 0:03:00]}  d5 {[%clk 0:02:54]} 2. c4 {[%clk 0:03:01]}  e6 {[%clk 0:02:54]} 3. Nc3 {[%clk 0:03:01]}  Bb4 {[%clk 0:02:54]} 4. cxd5 {[%clk 0:02:59]}  exd5 {[%clk 0:02:54]} 5. Bf4 {[%clk 0:02:59]}  Nf6 {[%clk 0:02:52]} 6. e3 {[%clk 0:02:58]}  O-O {[%clk 0:02:48]} 7. Bd3 {[%clk 0:02:58]}  Bd6 {[%clk 0:02:44]} 8. Nge2 {[%clk 0:02:57]}  b6 {[%clk 0:02:42]} 9. O-O {[%clk 0:02:55]}  Bb7 {[%clk 0:02:39]} 10. Rc1 {[%clk 0:02:52]}  c5 {[%clk 0:02:33]} 11. Bxd6 {[%clk 0:02:45]}  Qxd6 {[%clk 0:02:32]} 12. dxc5 {[%clk 0:02:43]}  bxc5 {[%clk 0:02:31]} 13. Bb1 {[%clk 0:02:26]}  Nbd7 {[%clk 0:02:27]} 14. Ng3 {[%clk 0:02:17]}  Rfe8 {[%clk 0:02:24]} 15. b3 {[%clk 0:02:03]}  g6 {[%clk 0:02:19]} 16. Re1 {[%clk 0:02:02]}  Qc6 {[%clk 0:02:16]} 17. Na4 {[%clk 0:01:52]}  Qd6 {[%clk 0:01:40]} 18. e4 {[%clk 0:01:46]}  d4 {[%clk 0:01:39]} 19. Nb2 {[%clk 0:01:44]}  Nb6 {[%clk 0:01:35]} 20. Bd3 {[%clk 0:01:42]}  h5 {[%clk 0:01:29]} 21. f3 {[%clk 0:01:29]}  h4 {[%clk 0:01:22]} 22. Nf1 {[%clk 0:01:30]}  Nh5 {[%clk 0:01:20]} 23. Nc4 {[%clk 0:01:23]}  Qf6 {[%clk 0:01:14]} 24. e5 {[%clk 0:01:06]}  Qg5 {[%clk 0:01:13]} 25. Qd2 {[%clk 0:00:53]}  Nf4 {[%clk 0:00:52]} 26. Nd6 {[%clk 0:00:17]}  Bxf3 {[%clk 0:00:49]} 27. Nxe8 {[%clk 0:00:15]}  Rxe8 {[%clk 0:00:48]} 28. Be4 {[%clk 0:00:10]}  Bxe4 {[%clk 0:00:37]} 29. Rxe4 {[%clk 0:00:11]}  Nh3+ {[%clk 0:00:37]} 30. Kh1 {[%clk 0:00:11]}  Qxd2 {[%clk 0:00:37]} 31. Nxd2 {[%clk 0:00:12]}  Nf2+ {[%clk 0:00:38]} 32. Kg1 {[%clk 0:00:13]}  Nxe4 {[%clk 0:00:38]} 33. Nxe4 {[%clk 0:00:14]}  Rxe5 {[%clk 0:00:38]} 34. Nxc5 {[%clk 0:00:14]}  Re2 {[%clk 0:00:37]} 35. a4 {[%clk 0:00:12]}  Nd5 {[%clk 0:00:36]} 36. Nd3 {[%clk 0:00:09]}  Nc3 {[%clk 0:00:33]} 37. Rf1 {[%clk 0:00:07]}  Re3 {[%clk 0:00:27]} 38. Rf3 {[%clk 0:00:06]}  g5 {[%clk 0:00:22]} 39. Kf1 {[%clk 0:00:06]}  f5 {[%clk 0:00:22]} 40. Nc5 {[%clk 0:00:03]}  f4 {[%clk 0:00:20]} 0-1


[Site "https://www.chess.com"]

[Event "Titled Tuesday Blitz February 28 Early 2023"]
[White "Drygalov, Sergey"]
[Black "Gabdrakhmanov, Azat"]
[WhiteFideId "24171743"]
[BlackFideId "34189197"]
[WhiteElo "2533"]
[BlackElo "2315"]
[Result "1-0"]
[Round "07"]
[TimeControl "180+2"]
[Date "2023.02.28"]
[WhiteClock "0:00:06"]
[BlackClock "0:00:04"]

1. d4 {[%clk 0:02:32]}  Nf6 {[%clk 0:02:59]} 2. c4 {[%clk 0:02:32]}  g6 {[%clk 0:02:59]} 3. Nc3 {[%clk 0:02:32]}  Bg7 {[%clk 0:03:00]} 4. e4 {[%clk 0:02:32]}  O-O {[%clk 0:03:01]} 5. Nf3 {[%clk 0:02:33]}  d6 {[%clk 0:03:01]} 6. Be2 {[%clk 0:02:33]}  e5 {[%clk 0:03:01]} 7. O-O {[%clk 0:02:33]}  Nc6 {[%clk 0:03:01]} 8. d5 {[%clk 0:02:33]}  Ne7 {[%clk 0:03:00]} 9. b4 {[%clk 0:02:34]}  Nh5 {[%clk 0:02:53]} 10. g3 {[%clk 0:02:33]}  f5 {[%clk 0:02:52]} 11. Ng5 {[%clk 0:02:33]}  Nf6 {[%clk 0:02:51]} 12. Bf3 {[%clk 0:02:34]}  h6 {[%clk 0:02:47]} 13. Ne6 {[%clk 0:02:33]}  Bxe6 {[%clk 0:02:48]} 14. dxe6 {[%clk 0:02:34]}  c6 {[%clk 0:02:48]} 15. b5 {[%clk 0:02:35]}  Qc7 {[%clk 0:02:48]} 16. Ba3 {[%clk 0:02:29]}  Rad8 {[%clk 0:02:41]} 17. Rc1 {[%clk 0:02:28]}  Qc8 {[%clk 0:02:38]} 18. Bxd6 {[%clk 0:02:00]}  Qxe6 {[%clk 0:02:36]} 19. c5 {[%clk 0:02:01]}  Nc8 {[%clk 0:02:33]} 20. bxc6 {[%clk 0:01:48]}  bxc6 {[%clk 0:02:06]} 21. Qa4 {[%clk 0:01:47]}  Nxd6 {[%clk 0:02:03]} 22. cxd6 {[%clk 0:01:36]}  Rxd6 {[%clk 0:02:03]} 23. Qxa7 {[%clk 0:01:35]}  Rfd8 {[%clk 0:02:01]} 24. a4 {[%clk 0:01:30]}  Rd3 {[%clk 0:01:54]} 25. Be2 {[%clk 0:01:28]}  R3d4 {[%clk 0:01:54]} 26. a5 {[%clk 0:01:23]}  fxe4 {[%clk 0:01:46]} 27. a6 {[%clk 0:01:22]}  Qh3 {[%clk 0:01:31]} 28. Qc5 {[%clk 0:01:11]}  Rd2 {[%clk 0:01:24]} 29. Nxe4 {[%clk 0:00:57]}  Nxe4 {[%clk 0:00:37]} 30. Qc4+ {[%clk 0:00:57]}  Kh7 {[%clk 0:00:35]} 31. Qxe4 {[%clk 0:00:57]}  Qf5 {[%clk 0:00:35]} 32. Bf3 {[%clk 0:00:46]}  Ra2 {[%clk 0:00:25]} 33. Qc4 {[%clk 0:00:29]}  Rxa6 {[%clk 0:00:10]} 34. Qxa6 {[%clk 0:00:18]}  Qxf3 {[%clk 0:00:10]} 35. Qxc6 {[%clk 0:00:18]}  e4 {[%clk 0:00:10]} 36. Rce1 {[%clk 0:00:18]}  Rd4 {[%clk 0:00:07]} 37. Re3 {[%clk 0:00:18]}  Qf5 {[%clk 0:00:07]} 38. Rfe1 {[%clk 0:00:18]}  Rd2 {[%clk 0:00:07]} 39. R3e2 {[%clk 0:00:16]}  e3 {[%clk 0:00:08]} 40. fxe3 {[%clk 0:00:14]}  Qd3 {[%clk 0:00:03]} 41. Rxd2 {[%clk 0:00:13]}  Qxd2 {[%clk 0:00:04]} 42. Qc1 {[%clk 0:00:14]}  Qd3 {[%clk 0:00:04]} 43. Qd1 {[%clk 0:00:14]}  Qe4 {[%clk 0:00:05]} 44. Qb1 {[%clk 0:00:14]}  Qf3 {[%clk 0:00:04]} 45. Qd3 {[%clk 0:00:14]}  h5 {[%clk 0:00:04]} 46. Rf1 {[%clk 0:00:14]}  Qg4 {[%clk 0:00:04]} 47. Rf4 {[%clk 0:00:14]}  Qe6 {[%clk 0:00:03]} 48. Kg2 {[%clk 0:00:12]}  Bh6 {[%clk 0:00:02]} 49. Qe4 {[%clk 0:00:09]}  Qa2+ {[%clk 0:00:02]} 50. Rf2 {[%clk 0:00:09]}  Qb3 {[%clk 0:00:02]} 51. Qe7+ {[%clk 0:00:09]}  Kh8 {[%clk 0:00:01]} 52. Qd8+ {[%clk 0:00:07]}  Kh7 {[%clk 0:00:01]} 53. Qd7+ {[%clk 0:00:07]}  Kh8 {[%clk 0:00:02]} 54. Qd4+ {[%clk 0:00:07]}  Kh7 {[%clk 0:00:02]} 55. e4 {[%clk 0:00:07]}  Bg7 {[%clk 0:00:02]} 56. Qd5 {[%clk 0:00:06]}  Qe3 {[%clk 0:00:02]} 57. Rf3 {[%clk 0:00:04]}  Qe2+ {[%clk 0:00:02]} 58. Rf2 {[%clk 0:00:05]}  Qe3 {[%clk 0:00:03]} 59. Qe6 {[%clk 0:00:05]}  h4 {[%clk 0:00:02]} 60. gxh4 {[%clk 0:00:05]}  Kh6 {[%clk 0:00:03]} 61. Qg4 {[%clk 0:00:05]}  Bd4 {[%clk 0:00:02]} 62. Qg5+ {[%clk 0:00:04]}  Qxg5+ {[%clk 0:00:03]} 63. hxg5+ {[%clk 0:00:05]}  Kxg5 {[%clk 0:00:04]} 64. Rd2 {[%clk 0:00:06]}  Be5 {[%clk 0:00:04]} 65. Kf3 {[%clk 0:00:06]} 1-0


[Site "https://www.chess.com"]